fUST/lending_fUST_20241003
["ID","MTS","AMOUNT","RATE_DAILY","PERIOD"]
[339737854,1727920162469,500.0,0.00021,60]
[339737855,1727920165747,500.0,0.00021,60]
[339737856,1727920166419,500.0,0.00021,60]
[339737857,1727920166539,500.0,0.00021,60]
[339737858,1727920166608,500.0,0.00021,60]
[339737859,1727920167251,500.0,0.00021,60]
[339737860,1727920167324,500.0,0.00021,60]
[339737861,1727920167576,807.62,0.00021,60]
[339737862,1727920168986,500.0,0.00021,60]
[339737863,1727920170684,733.99,0.00021,60]
[339737864,1727920170845,500.0,0.00021,60]
[339737865,1727920171406,500.0,0.00021,60]
[339737866,1727920176907,226.3408244,0.00021,60]
[339737867,1727920177915,531.22,0.00021,60]
[339737868,1727920179160,500.0,0.00021,60]
[339737869,1727920179390,500.0,0.00021,60]
[339737870,1727920180400,751.52,0.00021,60]
[339737871,1727920180777,900.17,0.00021,60]
[339737872,1727920180894,500.0,0.00021,60]
[339737873,1727920187432,500.0,0.00021,60]
[339737874,1727920189178,500.0,0.00021,60]
[339737875,1727920189241,500.0,0.00021,60]
[339737876,1727920189783,500.66198107,0.00021,60]
[339737877,1727920191450,500.0,0.00021,60]
[339737878,1727920192123,500.0,0.00021,60]
[339737879,1727920192674,500.0,0.00021,60]
[339737880,1727920193722,500.0,0.00021,60]
[339737881,1727920193914,826.09,0.00021,60]
[339737882,1727920197265,500.0,0.00021,60]
[339737883,1727920197371,509.35291261,0.00021,60]
[339737884,1727920198500,1241.17,0.00021,60]
[339737885,1727920199352,500.0,0.00021,60]
[339737886,1727920201236,500.26,0.00021,60]
[339737887,1727920206917,838.88,0.00021,60]
[339737888,1727920207460,500.0,0.00021,60]
[339737889,1727920208071,500.0,0.00021,60]
[339737890,1727920210201,500.0,0.00021,60]
[339737891,1727920210504,500.0,0.00021,60]
[339737892,1727920211469,500.0,0.00021,60]
[339737893,1727920214143,500.0,0.00021,60]
[339737894,1727920214682,500.0,0.00021,60]
[339737895,1727920214764,500.0,0.00021,60]
[339737896,1727920215801,500.0,0.00021,60]
[339737897,1727920216723,506.95178998,0.00021,60]
[339737898,1727920216778,500.0,0.00021,60]
[339737899,1727920216899,500.0,0.00021,60]
[339737900,1727920216985,889.04,0.00021,60]
[339737901,1727920219372,579.73,0.00021,60]
[339737902,1727920219426,517.09088591,0.00021,60]
[339737903,1727920221027,500.0,0.00021,60]
[339737904,1727920222462,500.0,0.00021,60]
[339737905,1727920222945,500.0,0.00021,60]
[339737906,1727920223610,500.0,0.00021,60]
[339737907,1727920223749,500.0,0.00021,60]
[339737908,1727920224176,631.36,0.00021,60]
[339737909,1727920228852,500.0,0.00021,60]
[339737910,1727920229791,500.0,0.00021,60]
[339737911,1727920231341,500.0,0.00021,60]
[339737915,1727920232694,500.0,0.00021,60]
[339737916,1727920233648,500.0,0.00021,60]
[339737917,1727920235656,500.0,0.00021,60]
[339737921,1727920237486,500.0,0.00021,60]
[339737954,1727920238093,-48.66620616,0.00013,2]
[339737956,1727920238103,-292.0,0.00013,2]
[339737958,1727920238113,-500.0,0.00013,2]
[339737960,1727920238122,-1000.0,0.000131,2]
[339737962,1727920238136,-300.0,0.00013454,2]
[339737964,1727920238145,-6057.86059423,0.00013455,2]
[339737966,1727920238155,-1000.0,0.000135,2]
[339737968,1727920238164,-500.0,0.00013525,2]
[339737970,1727920238176,-3678.72159597,0.00013588,2]
[339737972,1727920238185,-330.58290984,0.00013589,2]
[339737974,1727920238195,-1000.0,0.00013589,2]
[339737976,1727920238206,-189.25388445,0.00013589,2]
[339737978,1727920238215,-466.12520374,0.00013592,2]
[339737979,1727920238225,-474.98937932,0.00013599,2]
[339737980,1727920238236,-154.113566,0.000136,2]
[339737981,1727920238245,-410.45656522,0.000136,4]
[339737982,1727920238255,-150.112233,0.000136,2]
[339737983,1727920238264,-168.8456786,0.000136,2]
[339737984,1727920238274,-501.18967076,0.00013673,2]
[339737985,1727920238283,-500.0,0.00013673,2]
[339737986,1727920238292,-500.0,0.00013673,2]
[339737987,1727920238302,-500.0,0.00013673,2]
[339737988,1727920238312,-500.0,0.00013673,2]
[339737989,1727920238322,-179.27584988,0.00013678,2]
[339737990,1727920238332,-512.31944408,0.00013687,2]
[339737991,1727920238341,-150.28035152,0.00013688,2]
[339737992,1727920238351,-1342.84720471,0.00013688,2]
[339737993,1727920238360,-214.14532183,0.00013688,2]
[339737994,1727920238370,-2595.40141274,0.00013689,2]
[339738024,1727920239988,-23116.32312046,0.00013689,2]
[339738026,1727920239997,-37053.5573496,0.00013689,2]
[339738028,1727920240007,-154270.347199,0.00013689,2]
[339738030,1727920240017,-34332.29489696,0.00013689,2]
[339738032,1727920240030,-54962.16412269,0.00013689,2]
[339738402,1727920243486,500.0,0.00021,60]
[339738502,1727920244574,500.0,0.00021,60]
[339738531,1727920244848,500.0,0.00021,60]
[339738629,1727920245776,530.19,0.00021,60]
[339738670,1727920246154,500.0,0.00021,60]
[339738894,1727920248682,747.8,0.00021,60]
[339739010,1727920250451,500.0,0.00021,60]
[339739133,1727920252453,524.20681837,0.00021,60]
[339739134,1727920252505,500.0,0.00021,60]
[339739135,1727920252694,500.0,0.00021,60]
[339739311,1727920255398,500.0,0.00021,60]
[339739358,1727920256047,500.0,0.00021,60]
[339739393,1727920256408,500.0,0.00021,60]
[339739466,1727920257228,500.0,0.00021,60]
[339739478,1727920257773,500.0,0.00021,60]
[339739479,1727920257939,589.31,0.00021,60]
[339739497,1727920258573,500.0,0.00021,60]
[339739537,1727920258936,896.81,0.00021,60]
[339739563,1727920259176,500.0,0.00021,60]
[339739674,1727920260497,500.0,0.00021,60]
[339739733,1727920261043,538.34,0.00021,60]
[339739743,1727920261304,2087.67,0.00021,60]
[339739744,1727920261520,589.85504217,0.00021,60]
[339739762,1727920262061,1423.13,0.00021,60]
[339739775,1727920262209,670.8,0.00021,60]
[339739858,1727920263058,1016.86,0.00021,60]
[339739865,1727920263117,500.0,0.00021,60]
[339740045,1727920265300,208.13275147,0.00021,60]
[339740119,1727920266034,500.0,0.00021,60]
[339740276,1727920267642,500.0,0.00021,60]
[339740353,1727920270217,500.0,0.00021,60]
[339740354,1727920270275,531.91,0.00021,60]
[339740355,1727920271529,500.0,0.00021,60]
[339740356,1727920272147,500.0,0.00021,60]
[339740357,1727920272289,500.0,0.00021,60]
[339740358,1727920272529,500.0,0.00021,60]
[339740359,1727920273809,554.03,0.00021,60]
[339740360,1727920275747,500.0,0.00021,60]
[339740361,1727920275828,500.0,0.00021,60]
[339740362,1727920276762,289.64704842,0.00021,60]
[339740363,1727920276813,879.75,0.00021,60]
[339740364,1727920277923,878.82,0.00021,60]
[339740365,1727920278418,500.0,0.00021,60]
[339740366,1727920279247,500.0,0.00021,60]
[339740367,1727920279951,500.0,0.00021,60]
[339740368,1727920282213,500.0,0.00021,60]
[339740369,1727920282544,500.0,0.00021,60]
[339740370,1727920283758,994.18,0.00021,60]
[339740371,1727920284751,500.0,0.00021,60]
[339740372,1727920288164,500.0,0.00021,60]
[339740373,1727920288217,500.0,0.00021,60]
[339740374,1727920289064,1394.96,0.00021,60]
[339740375,1727920289118,500.0,0.00021,60]
[339740376,1727920289176,500.0,0.00021,60]
[339740377,1727920292410,558.8,0.00021,60]
[339740378,1727920295858,500.0,0.00021,60]
[339740379,1727920297506,500.0,0.00021,60]
[339740380,1727920297568,500.0,0.00021,60]
[339740381,1727920297622,516.5,0.00021,60]
[339740382,1727920298696,500.0,0.00021,60]
[339740383,1727920299992,577.09,0.00021,60]
[339740384,1727920302915,825.74,0.00021,60]
[339740385,1727920303471,514.65,0.00021,60]
[339740386,1727920305411,500.0,0.00021,60]
[339740387,1727920307560,500.0,0.00021,60]
[339740388,1727920309225,500.0,0.00021,60]
[339740389,1727920310387,500.0,0.00021,60]
[339740390,1727920311276,500.0,0.00021,60]
[339740391,1727920311588,500.0,0.00021,60]
[339740392,1727920312606,500.0,0.00021,60]
[339740393,1727920312682,500.0,0.00021,60]
[339740394,1727920316903,500.0,0.00021,60]
[339740395,1727920317564,500.0,0.00021,60]
[339740396,1727920318001,500.0,0.00021,60]
[339740397,1727920321566,500.0,0.00021,60]
[339740398,1727920323461,572.13,0.00021,60]
[339740399,1727920323802,500.0,0.00021,60]
[339740400,1727920326575,666.21,0.00021,60]
[339740401,1727920327219,500.0,0.00021,60]
[339740402,1727920328670,500.0,0.00021,60]
[339740403,1727920329236,500.0,0.00021,60]
[339740404,1727920332651,569.23,0.00021,60]
[339740405,1727920333134,1518.61,0.00021,60]
[339740406,1727920334374,500.0,0.00021,60]
[339740407,1727920335356,500.0,0.00021,60]
[339740408,1727920337135,500.0,0.00021,60]
[339740409,1727920337473,500.0,0.00021,60]
[339740410,1727920340379,393.0,0.000207,120]
[339740411,1727920340657,500.0,0.00021,60]
[339740412,1727920340704,411.39776965,0.00021,60]
[339740413,1727920340861,500.0,0.00021,60]
[339740414,1727920344542,500.0,0.00021,60]
[339740415,1727920344621,500.0,0.00021,60]
[339740416,1727920344669,500.0,0.00021,60]
[339740417,1727920346229,401.0,0.000209,120]
[339740418,1727920347461,500.0,0.00021,60]
[339740419,1727920347513,500.0,0.00021,60]
[339740420,1727920350682,628.4,0.00021,60]
[339740421,1727920352530,1210.87,0.00021,60]
[339740422,1727920354958,500.0,0.00021,60]
[339740423,1727920357598,530.38,0.00021,60]
[339740424,1727920362532,500.0,0.00021,60]
[339740425,1727920363037,500.0,0.00021,60]
[339740426,1727920363549,500.0,0.00021,60]
[339740427,1727920364514,500.0,0.00021,60]
[339740428,1727920364702,500.0,0.00021,60]
[339740429,1727920367660,2213.37,0.00021,60]
[339740430,1727920367705,786.48,0.00021,60]
[339740431,1727920368186,500.0,0.00021,60]
[339740432,1727920368695,523.15012217,0.00021,60]
[339740433,1727920370469,500.0,0.00021,60]
[339740434,1727920371508,500.0,0.00021,60]
[339740435,1727920374207,1057.52,0.00021,60]
[339740436,1727920375034,540.22,0.00021,60]
[339740437,1727920375082,3601.35,0.00021,60]
[339740438,1727920375742,181.22306273,0.00021,60]
[339740439,1727920377043,500.0,0.00021,60]
[339740440,1727920378070,500.0,0.00021,60]
[339740441,1727920378625,500.0,0.00021,60]
[339740442,1727920381409,500.0,0.00021,60]
[339740443,1727920384777,500.0,0.00021,60]
[339740444,1727920385379,500.0,0.00021,60]
[339740445,1727920385707,500.0,0.00021,60]
[339740446,1727920389241,500.0,0.00021,60]
[339740447,1727920390127,500.0,0.00021,60]
[339740448,1727920394271,500.0,0.00021,60]
[339740449,1727920394541,500.0,0.00021,60]
[339740450,1727920396424,500.0,0.00021,60]
[339740451,1727920397682,645.24,0.00021,60]
[339740452,1727920397759,500.0,0.00021,60]
[339740453,1727920399969,500.0,0.00021,60]
[339740454,1727920400579,500.0,0.00021,60]
[339740455,1727920400683,500.0,0.00021,60]
[339740456,1727920400738,500.0,0.00021,60]
[339740457,1727920402737,500.0,0.00021,60]
[339740458,1727920403140,500.0,0.00021,60]
[339740459,1727920403639,500.0,0.00021,60]
[339740460,1727920405518,513.44,0.00021,60]
[339740461,1727920407003,528.68,0.00021,60]
[339740462,1727920407082,610.29,0.00021,60]
[339740463,1727920409076,500.0,0.00021,60]
[339740464,1727920409317,500.0,0.00021,60]
[339740465,1727920411446,500.0,0.00021,60]
[339740466,1727920411888,593.71,0.00021,60]
[339740468,1727920415401,500.0,0.00021,60]
[339740469,1727920415519,500.0,0.00021,60]
[339740470,1727920417272,535.71,0.00021,60]
[339740471,1727920417424,500.0,0.00021,60]
[339740472,1727920418085,500.0,0.00021,60]
[339740473,1727920420530,500.0,0.00021,60]
[339740474,1727920421220,500.0,0.00021,60]
[339740475,1727920421358,500.0,0.00021,60]
[339740476,1727920421749,500.0,0.00021,60]
[339740477,1727920422268,500.0,0.00021,60]
[339740478,1727920424118,500.0,0.00021,60]
[339740479,1727920425503,500.0,0.00021,60]
[339740480,1727920425564,500.0,0.00021,60]
[339740481,1727920426243,1189.45,0.00021,60]
[339740482,1727920426483,3601.34,0.00021,60]
[339740483,1727920429666,500.0,0.00021,60]
[339740484,1727920431698,500.0,0.00021,60]
[339740485,1727920434487,500.0,0.00021,60]
[339740486,1727920436262,500.0,0.00021,60]
[339740487,1727920436848,500.0,0.00021,60]
[339740488,1727920437156,500.0,0.00021,60]
[339740489,1727920437420,500.0,0.00021,60]
[339740490,1727920437651,500.0,0.00021,60]
[339740491,1727920441976,500.0,0.00021,60]
[339740492,1727920446162,500.0,0.00021,60]
[339740493,1727920448103,647.57,0.00021,60]
[339740494,1727920449621,500.0,0.00021,60]
[339740495,1727920449670,728.3,0.00021,60]
[339740496,1727920450179,500.0,0.00021,60]
[339740497,1727920451164,500.0,0.00021,60]
[339740498,1727920451540,500.0,0.00021,60]
[339740499,1727920452760,500.0,0.00021,60]
[339740500,1727920454302,500.0,0.00021,60]
[339740501,1727920456406,1120.79,0.00021,60]
[339740502,1727920457578,500.0,0.00021,60]
[339740503,1727920458451,500.0,0.00021,60]
[339740504,1727920458694,500.0,0.00021,60]
[339740505,1727920461524,500.0,0.00021,60]
[339740506,1727920462548,500.0,0.00021,60]
[339740507,1727920462824,500.67025216,0.00021,60]
[339740508,1727920465102,500.0,0.00021,60]
[339740509,1727920466363,500.0,0.00021,60]
[339740510,1727920467959,852.0,0.00021,60]
[339740511,1727920468204,568.76,0.00021,60]
[339740512,1727920469084,500.0,0.00021,60]
[339740513,1727920469559,500.0,0.00021,60]
[339740514,1727920469870,500.0,0.00021,60]
[339740515,1727920470055,500.0,0.00021,60]
[339740516,1727920472107,519.18,0.00021,60]
[339740517,1727920477262,500.0,0.00021,60]
[339740518,1727920478236,500.0,0.00021,60]
[339740519,1727920478368,508.1,0.00021,60]
[339740520,1727920478505,500.0,0.00021,60]
[339740521,1727920478680,653.78,0.00021,60]
[339740522,1727920479505,637.45,0.00021,60]
[339740523,1727920479775,1363.84,0.00021,60]
[339740524,1727920482535,703.87,0.00021,60]
[339740525,1727920487745,500.0,0.00021,60]
[339740526,1727920488667,587.16052192,0.00021,60]
[339740527,1727920488912,500.0,0.00021,60]
[339740528,1727920491847,556.3,0.00021,60]
[339740529,1727920492547,500.0,0.00021,60]
[339740530,1727920492705,500.0,0.00021,60]
[339740531,1727920494154,500.0,0.00021,60]
[339740532,1727920495667,500.0,0.00021,60]
[339740533,1727920499683,500.0,0.00021,60]
[339740534,1727920499741,500.0,0.00021,60]
[339740535,1727920500558,500.0,0.00021,60]
[339740536,1727920501792,500.0,0.00021,60]
[339740537,1727920505292,515.50708246,0.00021,60]
[339740538,1727920505407,500.0,0.00021,60]
[339740539,1727920505705,500.0,0.00021,60]
[339740540,1727920506996,500.0,0.00021,60]
[339740541,1727920507851,500.0,0.00021,60]
[339740542,1727920508469,500.0,0.00021,60]
[339740543,1727920511127,500.0,0.00021,60]
[339740544,1727920511593,500.0,0.00021,60]
[339740545,1727920513749,500.0,0.00021,60]
[339740546,1727920514594,500.0,0.00021,60]
[339740547,1727920515098,648.44,0.00021,60]
[339740548,1727920515478,700.51,0.00021,60]
[339740549,1727920515558,500.0,0.00021,60]
[339740550,1727920520737,401.76,0.00021,60]
[339740551,1727920520832,501.33,0.00021,60]
[339740552,1727920522506,716.64,0.00021,60]
[339740553,1727920522890,500.0,0.00021,60]
[339740554,1727920522950,2000.69,0.00021,60]
[339740555,1727920523445,500.0,0.00021,60]
[339740562,1727920527174,279.48177078,0.00021,60]
[339740563,1727920527365,500.0,0.00021,60]
[339740564,1727920528293,952.76,0.00021,60]
[339740565,1727920529269,500.0,0.00021,60]
[339740566,1727920529610,500.0,0.00021,60]
[339740567,1727920530507,500.0,0.00021,60]
[339740568,1727920531643,500.0,0.00021,60]
[339740569,1727920533451,500.0,0.00021,60]
[339740570,1727920533605,500.0,0.00021,60]
[339740571,1727920535197,500.0,0.00021,60]
[339740572,1727920536799,500.0,0.00021,60]
[339740573,1727920537901,520.27774352,0.00021,60]
[339740574,1727920537956,500.0,0.00021,60]
[339740575,1727920540099,786.45,0.00021,60]
[339740576,1727920540816,1455.33,0.00021,60]
[339740577,1727920541212,500.0,0.00021,60]
[339740578,1727920541300,500.0,0.00021,60]
[339740579,1727920541715,500.0,0.00021,60]
[339740580,1727920544003,500.0,0.00021,60]
[339740581,1727920544339,515.91,0.00021,60]
[339740582,1727920545835,756.58,0.00021,60]
[339740583,1727920546049,912.84,0.00021,60]
[339740584,1727920548985,178.24507421,0.00021,60]
[339740585,1727920551272,724.26,0.00021,60]
[339740586,1727920552973,1000.0,0.00021,60]
[339740587,1727920553416,500.0,0.00021,60]
[339740588,1727920553731,775.12,0.00021,60]
[339740589,1727920559835,500.0,0.00021,60]
[339740590,1727920561129,500.0,0.00021,60]
[339740591,1727920561470,553.05,0.00021,60]
[339740592,1727920562273,500.0,0.00021,60]
[339740593,1727920565685,500.0,0.00021,60]
[339740594,1727920567596,1336.83,0.00021,60]
[339740595,1727920571416,500.0,0.00021,60]
[339740596,1727920573512,500.0,0.00021,60]
[339740597,1727920579186,500.0,0.00021,60]
[339740598,1727920580336,500.0,0.00021,60]
[339740599,1727920580486,500.0,0.00021,60]
[339740600,1727920583159,876.64,0.00021,60]
[339740601,1727920583513,524.76,0.00021,60]
[339740602,1727920585160,1104.87,0.00021,60]
[339740603,1727920585869,701.01,0.00021,60]
[339740604,1727920587809,500.0,0.00021,60]
[339740605,1727920589428,500.0,0.00021,60]
[339740606,1727920589885,383.30889032,0.00021,60]
[339740607,1727920595355,500.0,0.00021,60]
[339740608,1727920595743,500.0,0.00021,60]
[339740609,1727920595877,500.0,0.00021,60]
[339740610,1727920601435,500.0,0.00021,60]
[339740611,1727920602771,632.81,0.00021,60]
[339740612,1727920602865,2121.15,0.00021,60]
[339740613,1727920604750,500.0,0.00021,60]
[339740614,1727920605781,500.0,0.00021,60]
[339740615,1727920608334,617.08,0.00021,60]
[339740616,1727920610982,500.0,0.00021,60]
[339740617,1727920611505,500.0,0.00021,60]
[339740618,1727920612091,200.20753502,0.00021,60]
[339740619,1727920614670,500.0,0.00021,60]
[339740620,1727920615172,500.0,0.00021,60]
[339740621,1727920620214,500.0,0.00021,60]
[339740622,1727920621468,500.0,0.00021,60]
[339740623,1727920622096,500.0,0.00021,60]
[339740624,1727920623222,500.0,0.00021,60]
[339740625,1727920623600,500.0,0.00021,60]
[339740626,1727920626966,500.0,0.00021,60]
[339740627,1727920627969,500.6884089,0.00021,60]
[339740628,1727920628442,518.23,0.00021,60]
[339740629,1727920630277,500.0,0.00021,60]
[339740630,1727920631997,500.0,0.00021,60]
[339740631,1727920633642,500.0,0.00021,60]
[339740632,1727920633826,618.35,0.00021,60]
[339740633,1727920634054,500.0,0.00021,60]
[339740634,1727920638419,500.0,0.00021,60]
[339740635,1727920638592,500.0,0.00021,60]
[339740636,1727920639839,508.28,0.00021,60]
[339740637,1727920640154,500.0,0.00021,60]
[339740638,1727920640708,500.0,0.00021,60]
[339740639,1727920641776,566.58,0.00021,60]
[339740640,1727920642728,500.0,0.00021,60]
[339740641,1727920642997,500.0,0.00021,60]
[339740642,1727920643124,506.65,0.00021,60]
[339740643,1727920643997,1013.45,0.00021,60]
[339740644,1727920645393,500.0,0.00021,60]
[339740645,1727920648668,500.0,0.00021,60]
[339740646,1727920649945,500.0,0.00021,60]
[339740647,1727920650575,500.0,0.00021,60]
[339740648,1727920652125,500.0,0.00021,60]
[339740649,1727920653242,1109.99,0.00021,60]
[339740650,1727920655817,500.0,0.00021,60]
[339740651,1727920655970,500.0,0.00021,60]
[339740652,1727920656278,500.0,0.00021,60]
[339740653,1727920656761,500.0,0.00021,60]
[339740654,1727920659809,500.0,0.00021,60]
[339740655,1727920662720,537.5,0.00021,60]
[339740656,1727920664443,959.1,0.00021,60]
[339740657,1727920664875,520.1,0.00021,60]
[339740658,1727920665409,500.0,0.00021,60]
[339740659,1727920666578,500.0,0.00021,60]
[339740660,1727920667248,500.0,0.00021,60]
[339740661,1727920668603,697.71,0.00021,60]
[339740662,1727920669227,500.0,0.00021,60]
[339740663,1727920670652,500.0,0.00021,60]
[339740664,1727920671487,500.0,0.00021,60]
[339740665,1727920671801,500.0,0.00021,60]
[339740666,1727920672640,500.0,0.00021,60]
[339740667,1727920672776,1126.17,0.00021,60]
[339740668,1727920673906,703.41,0.00021,60]
[339740669,1727920676870,500.0,0.00021,60]
[339740670,1727920678363,500.0,0.00021,60]
[339740671,1727920678628,500.0,0.00021,60]
[339740672,1727920680403,500.0,0.00021,60]
[339740673,1727920681200,500.0,0.00021,60]
[339740674,1727920681747,500.0,0.00021,60]
[339740675,1727920682082,500.0,0.00021,60]
[339740676,1727920682722,500.0,0.00021,60]
[339740677,1727920683002,423.28516058,0.00021,60]
[339740678,1727920683145,603.73,0.00021,60]
[339740679,1727920683824,500.0,0.00021,60]
[339740680,1727920689636,503.57,0.00021,60]
[339740681,1727920690026,500.0,0.00021,60]
[339740682,1727920695088,603.5,0.00021,60]
[339740683,1727920695466,282.68698534,0.00021,60]
[339740684,1727920695952,1139.89,0.00021,60]
[339740685,1727920698256,500.0,0.00021,60]
[339740686,1727920699018,500.0,0.00021,60]
[339740687,1727920700542,527.0,0.00021,60]
[339740688,1727920702820,501.30459956,0.00021,60]
[339740689,1727920702982,500.0,0.00021,60]
[339740690,1727920704020,500.0,0.00021,60]
[339740691,1727920706229,500.0,0.00021,60]
[339740692,1727920710552,500.0,0.00021,60]
[339740693,1727920711911,500.0,0.00021,60]
[339740694,1727920716339,500.0,0.00021,60]
[339740695,1727920717003,500.0,0.00021,60]
[339740696,1727920720274,500.0,0.00021,60]
[339740697,1727920721475,500.0,0.00021,60]
[339740698,1727920721665,715.03,0.00021,60]
[339740699,1727920721918,500.0,0.00021,60]
[339740700,1727920722644,500.23713583,0.00021,60]
[339740701,1727920728089,500.0,0.00021,60]
[339740702,1727920729306,500.0,0.00021,60]
[339740703,1727920729766,500.0,0.00021,60]
[339740704,1727920730296,500.0,0.00021,60]
[339740705,1727920731024,686.78,0.00021,60]
[339740706,1727920741174,500.0,0.00021,60]
[339740707,1727920742157,913.06,0.00021,60]
[339740708,1727920742229,500.0,0.00021,60]
[339740709,1727920748474,757.92,0.00021,60]
[339740710,1727920748833,500.0,0.00021,60]
[339740711,1727920749084,500.0,0.00021,60]
[339740712,1727920750360,500.0,0.00021,60]
[339740713,1727920750919,1917.32,0.00021,60]
[339740714,1727920751751,500.0,0.00021,60]
[339740715,1727920753538,500.0,0.00021,60]
[339740716,1727920754448,500.0,0.00021,60]
[339740717,1727920754689,684.28,0.00021,60]
[339740718,1727920755177,500.0,0.00021,60]
[339740719,1727920756333,663.09,0.00021,60]
[339740720,1727920757015,500.52512882,0.00021,60]
[339740721,1727920757120,635.34037091,0.00021,60]
[339740722,1727920758268,500.0,0.00021,60]
[339740723,1727920758919,500.0,0.00021,60]
[339740724,1727920760681,619.71797327,0.00021,60]
[339740725,1727920761647,500.0,0.00021,60]
[339740726,1727920762159,500.0,0.00021,60]
[339740727,1727920762458,500.0,0.00021,60]
[339740728,1727920763742,642.85,0.00021,60]
[339740729,1727920766145,773.97,0.00021,60]
[339740730,1727920767363,513.18300212,0.00021,60]
[339740731,1727920768500,862.66,0.00021,60]
[339740732,1727920769332,1307.01,0.00021,60]
[339740733,1727920769384,500.0,0.00021,60]